Workbook

Sheet irc2020
A1: 견 적 서
A4: 강원개발 | C4: 귀하
A5: 전화 : | B5: 033-256-3123
A6: 팩스 : | B6: 033-253-3123
A7: 담당 : | B7: 조현명님
A9: 아래와 같이 견적합니다.
A11: 견 적 합 계 : | B11: =G43 -> 4070000
A12: 견 적 일 자 : | B12: =NOW() -> 2011-01-26T14:50:05.460
A13: 결 재 조 건 :
A15: 품 명 | B15: 규 격 | C15: 수 량 | D15: 단 가 | E15: 금 액 | F15: 세 액 | G15: 합 계 액
E16: =C16*D16 -> 0 | F16: =E16*10% -> 0 | G16: =SUM(E16:F16) -> 0
A17: 컬러복합기 | B17: Canon ir ADV C2020A | C17: 1 | D17: 3700000 | E17: 3700000 | F17: 370000 | G17: 4070000
E18: 0 | F18: 0 | G18: 0
B19: A3 컬러레이저 복합기 20/20ppm (검정/컬러) | E19: 0 | F19: 0 | G19: 0
B20: 프린터, 복사, 네트웍스캔(옵션) | E20: 0 | F20: 0 | G20: 0
B21: 유선네트워크, usb 지원 | E21: 0 | F21: 0 | G21: 0
B22: 1200dpi 고해상도 프린팅 | F22: 0 | G22: 0
B23: 250매 용지함, 550매 입력용지함, 100매 다목적용지함 | E23: 0 | F23: 0 | G23: 0
B24: 자동양면인쇄지원 | E24: 0 | F24: 0 | G24: 0
B25: 양면복사 기본지원 | E25: 0 | F25: 0 | G25: 0
E26: 0 | F26: 0 | G26: 0
E27: 0 | F27: 0 | G27: 0
E28: 0 | F28: 0 | G28: 0
E29: 0 | F29: 0 | G29: 0
E30: 0 | F30: 0 | G30: 0
E31: 0 | F31: 0 | G31: 0
E32: 0 | F32: 0 | G32: 0
E33: 0 | F33: 0 | G33: 0
E34: 0 | F34: 0 | G34: 0
E35: 0 | F35: 0 | G35: 0
E36: 0 | F36: 0 | G36: 0
E37: 0 | F37: 0 | G37: 0
E38: 0 | F38: 0 | G38: 0
E39: 0 | F39: 0 | G39: 0
E40: 0 | F40: 0 | G40: 0
E41: 0 | F41: 0 | G41: 0
E42: 0 | F42: 0 | G42: 0
A43: * 결제계좌 : 신한 110-138-600484 씨-넷 | D43: 합 계 | E43: =SUM(E16:E42) -> 3700000 | F43: =SUM(F16:F42) -> 370000 | G43: =SUM(G16:G42) -> 4070000
A44: * 견적담당 : 조규장(010-2910-7760)
A45: * REMARK
A46: 1. 컬러레이저 대비 유지비 50% 정도 저렴합니다.

Sheet cp6015dn
A1: 견 적 서
A4: 강원개발 | C4: 귀하
A5: 전화 : | B5: 033-256-3123
A6: 팩스 : | B6: 033-253-3123
A7: 담당 : | B7: 조현명님
A9: 아래와 같이 견적합니다.
A11: 견 적 합 계 : | B11: =G43 -> 4730000
A12: 견 적 일 자 : | B12: =NOW() -> 2011-01-26T14:50:05.460
A13: 결 재 조 건 :
A15: 품 명 | B15: 규 격 | C15: 수 량 | D15: 단 가 | E15: 금 액 | F15: 세 액 | G15: 합 계 액
E16: =C16*D16 -> 0 | F16: =E16*10% -> 0 | G16: =SUM(E16:F16) -> 0
A17: 컬러레이저 | B17: HP CP6015DN | C17: 1 | D17: 4300000 | E17: 4300000 | F17: 430000 | G17: 4730000
E18: 0 | F18: 0 | G18: 0
B19: A3 컬러레이저 41/41ppm (검정/컬러) | E19: 0 | F19: 0 | G19: 0
B20: 유선네트워크, usb 지원 | E20: 0 | F20: 0 | G20: 0
B21: 1200dpi | E21: 0 | F21: 0 | G21: 0
B22: 500매 입력용지함, 100매 다목적용지함 | E22: 0 | F22: 0 | G22: 0
B23: 자동양면인쇄지원 | E23: 0 | F23: 0 | G23: 0
E24: 0 | F24: 0 | G24: 0
E25: 0 | F25: 0 | G25: 0
E26: 0 | F26: 0 | G26: 0
E27: 0 | F27: 0 | G27: 0
E28: 0 | F28: 0 | G28: 0
E29: 0 | F29: 0 | G29: 0
E30: 0 | F30: 0 | G30: 0
E31: 0 | F31: 0 | G31: 0
E32: 0 | F32: 0 | G32: 0
E33: 0 | F33: 0 | G33: 0
E34: 0 | F34: 0 | G34: 0
E35: 0 | F35: 0 | G35: 0
E36: 0 | F36: 0 | G36: 0
E37: 0 | F37: 0 | G37: 0
E38: 0 | F38: 0 | G38: 0
E39: 0 | F39: 0 | G39: 0
E40: 0 | F40: 0 | G40: 0
E41: 0 | F41: 0 | G41: 0
E42: 0 | F42: 0 | G42: 0
A43: * 결제계좌 : 신한 110-138-600484 씨-넷 | D43: 합 계 | E43: =SUM(E16:E42) -> 4300000 | F43: =SUM(F16:F42) -> 430000 | G43: =SUM(G16:G42) -> 4730000
A44: * 견적담당 : 조규장(010-2910-7760)
A45: * REMARK

Sheet 6360
A1: 견 적 서
A4: 강원개발 | C4: 귀하
A5: 전화 : | B5: 033-256-3123
A6: 팩스 : | B6: 033-253-3123
A7: 담당 : | B7: 조현명님
A9: 아래와 같이 견적합니다.
A11: 견 적 합 계 : | B11: =G43 -> 3850000
A12: 견 적 일 자 : | B12: =NOW() -> 2011-01-26T14:50:05.460
A13: 결 재 조 건 :
A15: 품 명 | B15: 규 격 | C15: 수 량 | D15: 단 가 | E15: 금 액 | F15: 세 액 | G15: 합 계 액
E16: =C16*D16 -> 0 | F16: =E16*10% -> 0 | G16: =SUM(E16:F16) -> 0
A17: 컬러레이저 | B17: Canon CLBP6360 | C17: 1 | D17: 3500000 | E17: 3500000 | F17: 350000 | G17: 3850000
E18: 0 | F18: 0 | G18: 0
B19: A3 컬러레이저 40/36ppm (검정/컬러) | E19: 0 | F19: 0 | G19: 0
B20: 유선네트워크, usb 지원 | E20: 0 | F20: 0 | G20: 0
B21: 1200dpi | E21: 0 | F21: 0 | G21: 0
B22: 530매 입력용지함, 100매 다목적용지함 | E22: 0 | F22: 0 | G22: 0
B23: 자동양면인쇄지원 | E23: 0 | F23: 0 | G23: 0
E24: 0 | F24: 0 | G24: 0
E25: 0 | F25: 0 | G25: 0
E26: 0 | F26: 0 | G26: 0
E27: 0 | F27: 0 | G27: 0
E28: 0 | F28: 0 | G28: 0
E29: 0 | F29: 0 | G29: 0
E30: 0 | F30: 0 | G30: 0
E31: 0 | F31: 0 | G31: 0
E32: 0 | F32: 0 | G32: 0
E33: 0 | F33: 0 | G33: 0
E34: 0 | F34: 0 | G34: 0
E35: 0 | F35: 0 | G35: 0
E36: 0 | F36: 0 | G36: 0
E37: 0 | F37: 0 | G37: 0
E38: 0 | F38: 0 | G38: 0
E39: 0 | F39: 0 | G39: 0
E40: 0 | F40: 0 | G40: 0
E41: 0 | F41: 0 | G41: 0
E42: 0 | F42: 0 | G42: 0
A43: * 결제계좌 : 신한 110-138-600484 씨-넷 | D43: 합 계 | E43: =SUM(E16:E42) -> 3500000 | F43: =SUM(F16:F42) -> 350000 | G43: =SUM(G16:G42) -> 3850000
A44: * 견적담당 : 조규장(010-2910-7760)
A45: * REMARK

Sheet 5970k
A1: 견 적 서
A4: 강원개발 | C4: 귀하
A5: 전화 : | B5: 033-256-3123
A6: 팩스 : | B6: 033-253-3123
A7: 담당 : | B7: 조현명님
A9: 아래와 같이 견적합니다.
A11: 견 적 합 계 : | B11: =G43 -> 3146000
A12: 견 적 일 자 : | B12: =NOW() -> 2011-01-26T14:50:05.460
A13: 결 재 조 건 :
A15: 품 명 | B15: 규 격 | C15: 수 량 | D15: 단 가 | E15: 금 액 | F15: 세 액 | G15: 합 계 액
E16: =C16*D16 -> 0 | F16: =E16*10% -> 0 | G16: =SUM(E16:F16) -> 0
A17: 컬러레이저 | B17: Canon CLBP5970K | C17: 1 | D17: 2860000 | E17: 2860000 | F17: 286000 | G17: 3146000
E18: 0 | F18: 0 | G18: 0
B19: A3 컬러레이저 32ppm | E19: 0 | F19: 0 | G19: 0
B20: 유선네트워크, usb 지원 | E20: 0 | F20: 0 | G20: 0
B21: 600dpi | E21: 0 | F21: 0 | G21: 0
B22: 250매 입력용지함, 100매 다목적용지함 | E22: 0 | F22: 0 | G22: 0
B23: 자동양면인쇄지원 | E23: 0 | F23: 0 | G23: 0
E24: 0 | F24: 0 | G24: 0
E25: 0 | F25: 0 | G25: 0
E26: 0 | F26: 0 | G26: 0
E27: 0 | F27: 0 | G27: 0
E28: 0 | F28: 0 | G28: 0
E29: 0 | F29: 0 | G29: 0
E30: 0 | F30: 0 | G30: 0
E31: 0 | F31: 0 | G31: 0
E32: 0 | F32: 0 | G32: 0
E33: 0 | F33: 0 | G33: 0
E34: 0 | F34: 0 | G34: 0
E35: 0 | F35: 0 | G35: 0
E36: 0 | F36: 0 | G36: 0
E37: 0 | F37: 0 | G37: 0
E38: 0 | F38: 0 | G38: 0
E39: 0 | F39: 0 | G39: 0
E40: 0 | F40: 0 | G40: 0
E41: 0 | F41: 0 | G41: 0
E42: 0 | F42: 0 | G42: 0
A43: * 결제계좌 : 신한 110-138-600484 씨-넷 | D43: 합 계 | E43: =SUM(E16:E42) -> 2860000 | F43: =SUM(F16:F42) -> 286000 | G43: =SUM(G16:G42) -> 3146000
A44: * 견적담당 : 조규장(010-2910-7760)
A45: * REMARK

Sheet c9103cdn
A1: 견 적 서
A4: 강원개발 | C4: 귀하
A5: 전화 : | B5: 033-256-3123
A6: 팩스 : | B6: 033-253-3123
A7: 담당 : | B7: 조현명님
A9: 아래와 같이 견적합니다.
A11: 견 적 합 계 : | B11: =G43 -> 2299000
A12: 견 적 일 자 : | B12: =NOW() -> 2011-01-26T14:50:05.460
A13: 결 재 조 건 :
A15: 품 명 | B15: 규 격 | C15: 수 량 | D15: 단 가 | E15: 금 액 | F15: 세 액 | G15: 합 계 액
E16: =C16*D16 -> 0 | F16: =E16*10% -> 0 | G16: =SUM(E16:F16) -> 0
A17: 컬러레이저 | B17: Canon CLBP9100CDN | C17: 1 | D17: 2090000 | E17: 2090000 | F17: 209000 | G17: 2299000
E18: 0 | F18: 0 | G18: 0
B19: A3 컬러레이저 20ppm | E19: 0 | F19: 0 | G19: 0
B20: 유선네트워크, usb 지원 | E20: 0 | F20: 0 | G20: 0
B21: 600dpi | E21: 0 | F21: 0 | G21: 0
B22: 250매 입력용지함, 100매 다목적용지함 | E22: 0 | F22: 0 | G22: 0
B23: 자동양면인쇄지원 | E23: 0 | F23: 0 | G23: 0
B24: 500매 추가용지함 포함 | E24: 0 | F24: 0 | G24: 0
E25: 0 | F25: 0 | G25: 0
E26: 0 | F26: 0 | G26: 0
E27: 0 | F27: 0 | G27: 0
E28: 0 | F28: 0 | G28: 0
E29: 0 | F29: 0 | G29: 0
E30: 0 | F30: 0 | G30: 0
E31: 0 | F31: 0 | G31: 0
E32: 0 | F32: 0 | G32: 0
E33: 0 | F33: 0 | G33: 0
E34: 0 | F34: 0 | G34: 0
E35: 0 | F35: 0 | G35: 0
E36: 0 | F36: 0 | G36: 0
E37: 0 | F37: 0 | G37: 0
E38: 0 | F38: 0 | G38: 0
E39: 0 | F39: 0 | G39: 0
E40: 0 | F40: 0 | G40: 0
E41: 0 | F41: 0 | G41: 0
E42: 0 | F42: 0 | G42: 0
A43: * 결제계좌 : 신한 110-138-600484 씨-넷 | D43: 합 계 | E43: =SUM(E16:E42) -> 2090000 | F43: =SUM(F16:F42) -> 209000 | G43: =SUM(G16:G42) -> 2299000
A44: * 견적담당 : 조규장(010-2910-7760)
A45: * REMARK

Sheet c9100cdn
A1: 견 적 서
A4: 강원개발 | C4: 귀하
A5: 전화 : | B5: 033-256-3123
A6: 팩스 : | B6: 033-253-3123
A7: 담당 : | B7: 조현명님
A9: 아래와 같이 견적합니다.
A11: 견 적 합 계 : | B11: =G43 -> 1815000
A12: 견 적 일 자 : | B12: =NOW() -> 2011-01-26T14:50:05.460
A13: 결 재 조 건 :
A15: 품 명 | B15: 규 격 | C15: 수 량 | D15: 단 가 | E15: 금 액 | F15: 세 액 | G15: 합 계 액
E16: =C16*D16 -> 0 | F16: =E16*10% -> 0 | G16: =SUM(E16:F16) -> 0
A17: 컬러레이저 | B17: Canon CLBP9100CDN | C17: 1 | D17: 1650000 | E17: 1650000 | F17: 165000 | G17: 1815000
E18: 0 | F18: 0 | G18: 0
B19: A3 컬러레이저 20ppm | E19: 0 | F19: 0 | G19: 0
B20: 유선네트워크, usb 지원 | E20: 0 | F20: 0 | G20: 0
B21: 600dpi | E21: 0 | F21: 0 | G21: 0
B22: 250매 입력용지함, 100매 다목적용지함 | E22: 0 | F22: 0 | G22: 0
B23: 자동양면인쇄지원 | E23: 0 | F23: 0 | G23: 0
E24: 0 | F24: 0 | G24: 0
E25: 0 | F25: 0 | G25: 0
E26: 0 | F26: 0 | G26: 0
E27: 0 | F27: 0 | G27: 0
E28: 0 | F28: 0 | G28: 0
E29: 0 | F29: 0 | G29: 0
E30: 0 | F30: 0 | G30: 0
E31: 0 | F31: 0 | G31: 0
E32: 0 | F32: 0 | G32: 0
E33: 0 | F33: 0 | G33: 0
E34: 0 | F34: 0 | G34: 0
E35: 0 | F35: 0 | G35: 0
E36: 0 | F36: 0 | G36: 0
E37: 0 | F37: 0 | G37: 0
E38: 0 | F38: 0 | G38: 0
E39: 0 | F39: 0 | G39: 0
E40: 0 | F40: 0 | G40: 0
E41: 0 | F41: 0 | G41: 0
E42: 0 | F42: 0 | G42: 0
A43: * 결제계좌 : 신한 110-138-600484 씨-넷 | D43: 합 계 | E43: =SUM(E16:E42) -> 1650000 | F43: =SUM(F16:F42) -> 165000 | G43: =SUM(G16:G42) -> 1815000
A44: * 견적담당 : 조규장(010-2910-7760)
A45: * REMARK
A46: 1. hp cp5225dn과 동급제품입니다.

Sheet cp5225dn
A1: 견 적 서
A4: 강원개발 | C4: 귀하
A5: 전화 : | B5: 033-256-3123
A6: 팩스 : | B6: 033-253-3123
A7: 담당 : | B7: 조현명님
A9: 아래와 같이 견적합니다.
A11: 견 적 합 계 : | B11: =G43 -> 2530000
A12: 견 적 일 자 : | B12: =NOW() -> 2011-01-26T14:50:05.460
A13: 결 재 조 건 :
A15: 품 명 | B15: 규 격 | C15: 수 량 | D15: 단 가 | E15: 금 액 | F15: 세 액 | G15: 합 계 액
E16: =C16*D16 -> 0 | F16: =E16*10% -> 0 | G16: =SUM(E16:F16) -> 0
A17: 컬러레이저 | B17: hp 컬러레이저 CP5225DN | C17: 1 | D17: 2300000 | E17: =C17*D17 -> 2300000 | F17: =E17*10% -> 230000 | G17: =SUM(E17:F17) -> 2530000
E18: 0 | F18: 0 | G18: =SUM(E18:F18) -> 0
B19: A3 컬러레이저 20ppm | E19: 0 | F19: 0 | G19: 0
B20: 유선네트워크, usb 지원 | E20: 0 | F20: 0 | G20: 0
B21: 600dpi | E21: 0 | F21: 0 | G21: 0
B22: 250매 입력용지함, 100매 다목적용지함 | E22: 0 | F22: 0 | G22: 0
B23: 자동양면인쇄지원 | E23: 0 | F23: 0 | G23: 0
E24: 0 | F24: 0 | G24: 0
E25: 0 | F25: 0 | G25: 0
E26: 0 | F26: 0 | G26: 0
E27: 0 | F27: 0 | G27: 0
E28: 0 | F28: 0 | G28: 0
E29: 0 | F29: 0 | G29: 0
E30: 0 | F30: 0 | G30: 0
E31: 0 | F31: 0 | G31: 0
E32: 0 | F32: 0 | G32: 0
E33: 0 | F33: 0 | G33: 0
E34: 0 | F34: 0 | G34: 0
E35: 0 | F35: 0 | G35: 0
E36: 0 | F36: 0 | G36: 0
E37: 0 | F37: 0 | G37: 0
E38: 0 | F38: 0 | G38: 0
E39: 0 | F39: 0 | G39: 0
E40: 0 | F40: 0 | G40: 0
E41: 0 | F41: 0 | G41: 0
E42: 0 | F42: 0 | G42: 0
A43: * 결제계좌 : 신한 110-138-600484 씨-넷 | D43: 합 계 | E43: =SUM(E16:E42) -> 2300000 | F43: =SUM(F16:F42) -> 230000 | G43: =SUM(G16:G42) -> 2530000
A44: * 견적담당 : 조규장(010-2910-7760)
A45: * REMARK

Sheet cp5225n
A1: 견 적 서
A4: 강원개발 | C4: 귀하
A5: 전화 : | B5: 033-256-3123
A6: 팩스 : | B6: 033-253-3123
A7: 담당 : | B7: 조현명님
A9: 아래와 같이 견적합니다.
A11: 견 적 합 계 : | B11: =G43 -> 2200000
A12: 견 적 일 자 : | B12: =NOW() -> 2011-01-26T14:50:05.460
A13: 결 재 조 건 :
A15: 품 명 | B15: 규 격 | C15: 수 량 | D15: 단 가 | E15: 금 액 | F15: 세 액 | G15: 합 계 액
E16: =C16*D16 -> 0 | F16: =E16*10% -> 0 | G16: =SUM(E16:F16) -> 0
A17: 컬러레이저 | B17: hp 컬러레이저 CP5225N | C17: 1 | D17: 2000000 | E17: 2000000 | F17: 200000 | G17: 2200000
E18: 0 | F18: 0 | G18: 0
B19: A3 컬러레이저 20ppm | E19: 0 | F19: 0 | G19: 0
B20: 유선네트워크, usb 지원 | E20: 0 | F20: 0 | G20: 0
B21: 600dpi | E21: 0 | F21: 0 | G21: 0
B22: 250매 입력용지함, 100매 다목적용지함 | E22: 0 | F22: 0 | G22: 0
E23: 0 | F23: 0 | G23: 0
E24: 0 | F24: 0 | G24: 0
E25: 0 | F25: 0 | G25: 0
E26: 0 | F26: 0 | G26: 0
E27: 0 | F27: 0 | G27: 0
E28: 0 | F28: 0 | G28: 0
E29: 0 | F29: 0 | G29: 0
E30: 0 | F30: 0 | G30: 0
E31: 0 | F31: 0 | G31: 0
E32: 0 | F32: 0 | G32: 0
E33: 0 | F33: 0 | G33: 0
E34: 0 | F34: 0 | G34: 0
E35: 0 | F35: 0 | G35: 0
E36: 0 | F36: 0 | G36: 0
E37: 0 | F37: 0 | G37: 0
E38: 0 | F38: 0 | G38: 0
E39: 0 | F39: 0 | G39: 0
E40: 0 | F40: 0 | G40: 0
E41: 0 | F41: 0 | G41: 0
E42: 0 | F42: 0 | G42: 0
A43: * 결제계좌 : 신한 110-138-600484 씨-넷 | D43: 합 계 | E43: =SUM(E16:E42) -> 2000000 | F43: =SUM(F16:F42) -> 200000 | G43: =SUM(G16:G42) -> 2200000
A44: * 견적담당 : 조규장(010-2910-7760)
A45: * REMARK
